Departmental family,Entity,Date Paid,Expense type,Expense Area,Supplier,Transaction Number, Amount ,Description,Supplier Type,Expenditure Type
UK Statistics Authority,Office for National Statistics,01-Oct-18,Contractors,Economic Statistics - Transformation,Mango Solutions,105268,"77,850.00", Information Management Services,SME,Programme
UK Statistics Authority,Office for National Statistics,01-Oct-18,Contractors,Economic Statistics - Transformation,Concept Information Technology Ltd T/A Concept Resourcing,105273,"3,577.27", Information Management Services,Large,Programme
UK Statistics Authority,Office for National Statistics,01-Oct-18,Contractors,Economic Statistics - Transformation,Concept Information Technology Ltd T/A Concept Resourcing,105273,"3,829.69", Information Management Services,Large,Programme
UK Statistics Authority,Office for National Statistics,01-Oct-18,Contractors,Economic Statistics - Transformation,Concept Information Technology Ltd T/A Concept Resourcing,105273,"7,583.27", Information Management Services,Large,Programme
UK Statistics Authority,Office for National Statistics,01-Oct-18,Contractors,Economic Statistics - Transformation,Concept Information Technology Ltd T/A Concept Resourcing,105273,"2,974.35", Information Management Services,Large,Programme
UK Statistics Authority,Office for National Statistics,01-Oct-18,Contractors,National Accounts and Economic Statistics,Concept Information Technology Ltd T/A Concept Resourcing,105273,"9,450.00", Information Management Services,Large,Programme
UK Statistics Authority,Office for National Statistics,01-Oct-18,Short-Term Contract and Agency Staff - Full Cost,Economic Statistics - Transformation,Concept Information Technology Ltd T/A Concept Resourcing,105273,"7,565.86", Information Management Services,Large,Programme
UK Statistics Authority,Office for National Statistics,01-Oct-18,Short-Term Contract and Agency Staff - Full Cost,Economic Statistics - Transformation,Concept Information Technology Ltd T/A Concept Resourcing,105273,991.45, Information Management Services,Large,Programme
UK Statistics Authority,Office for National Statistics,01-Oct-18,Short-Term Contract and Agency Staff - Full Cost,Economic Statistics - Transformation,Concept Information Technology Ltd T/A Concept Resourcing,105273,"4,158.00", Information Management Services,Large,Programme
UK Statistics Authority,Office for National Statistics,01-Oct-18,Short-Term Contract and Agency Staff - Full Cost,Economic Statistics - Transformation,Concept Information Technology Ltd T/A Concept Resourcing,105273,"3,559.31", Information Management Services,Large,Programme
UK Statistics Authority,Office for National Statistics,01-Oct-18,Short-Term Contract and Agency Staff - Full Cost,"Methods, Data and Research",Concept Information Technology Ltd T/A Concept Resourcing,105273,"4,870.57", Information Management Services,Large,Programme
UK Statistics Authority,Office for National Statistics,01-Oct-18,Short-Term Contract and Agency Staff - Full Cost,National Accounts and Economic Statistics,Concept Information Technology Ltd T/A Concept Resourcing,105273,"7,931.35", Information Management Services,Large,Programme
UK Statistics Authority,Office for National Statistics,01-Oct-18,ICT - Cloud Service,"Finance, Planning and Performance",SCC,105275,"5,157.94", Information Management Services,Large,Programme
UK Statistics Authority,Office for National Statistics,01-Oct-18,ICT Software ,"Finance, Planning and Performance",SCC,105275,"154,286.88", Information Management Services,Large,Programme
UK Statistics Authority,Office for National Statistics,01-Oct-18,Membership Subscription,People and Business Services,Information Security Forum Limited,105289,"34,800.00", Security Furum Services Membership Subscription,Large,Programme
UK Statistics Authority,Office for National Statistics,02-Oct-18,ICT Outsourcing and Maintenance/Support,Digital Services and Technology,Methods Business & Digital Technology Ltd,105664,"64,800.00", Information Management Services,Large,Programme
UK Statistics Authority,Office for National Statistics,03-Oct-18,ICT Outsourcing and Maintenance/Support,Digital Services and Technology,Crown Hosting Data Centres Limited,105679,"25,425.32", Cloud Services,SME,Programme
UK Statistics Authority,Office for National Statistics,03-Oct-18,ICT Outsourcing and Maintenance/Support,Digital Services and Technology,Crown Hosting Data Centres Limited,105679,"16,563.18", Cloud Services,SME,Programme
UK Statistics Authority,Office for National Statistics,03-Oct-18,Travel and Subsistence,"Finance, Planning and Performance",Corporate Travel Management ,105681,"65,348.67", Travel and Accommodation Booking Service ,SME,Programme
UK Statistics Authority,Office for National Statistics,03-Oct-18,ICT Outsourcing and Maintenance/Support,Digital Services and Technology,Equiniti Limited,105682,"10,547.34", Information Management Services,Large,Programme
UK Statistics Authority,Office for National Statistics,03-Oct-18,ICT Outsourcing and Maintenance/Support,Digital Services and Technology,Equiniti Limited,105682,"36,665.46", Information Management Services,Large,Programme
UK Statistics Authority,Office for National Statistics,03-Oct-18,Furniture > 2k per item,People and Business Services,The Senator Group,105684,"188,060.24", Furniture refurbishment Titchfield,Large,Programme
UK Statistics Authority,Office for National Statistics,03-Oct-18,Capital Major Works > 25K,People and Business Services,Hawkings Cladding Ltd,105688,"105,699.40", Major Works Newport,SME,Programme
UK Statistics Authority,Office for National Statistics,03-Oct-18,Internal Audit Services,"Finance, Planning and Performance",RSM Risk Assurance Services LLP,105691,"29,073.72", Information Management Services,SME,Programme
UK Statistics Authority,Office for National Statistics,04-Oct-18,Surveys,National Accounts and Economic Statistics,Kantar Public,106018,"189,528.90", Statistical Services,SME,Programme
UK Statistics Authority,Office for National Statistics,04-Oct-18,Contractors,Economic Statistics - Transformation,Parity Resources Limited,106034,"12,096.00", Information Management Services,Large,Programme
UK Statistics Authority,Office for National Statistics,04-Oct-18,Contractors,Policy and Communication,Parity Resources Limited,106034,"11,286.00", Information Management Services,Large,Programme
UK Statistics Authority,Office for National Statistics,04-Oct-18,Contractors,"Public, Population and Policy - Transformation ",Parity Resources Limited,106034,"21,157.20", Information Management Services,Large,Programme
UK Statistics Authority,Office for National Statistics,08-Oct-18,Consultancy,Economic Statistics - Transformation,NIESR,106228,"324,797.46", Information Management Services,SME,Programme
UK Statistics Authority,Office for National Statistics,08-Oct-18,Contractors,Digital Services and Technology,LA International,106230,"26,729.27", Information Management Services,SME,Programme
UK Statistics Authority,Office for National Statistics,08-Oct-18,Contractors,People and Business Services,LA International,106230,"3,701.04", Information Management Services,SME,Programme
UK Statistics Authority,Office for National Statistics,08-Oct-18,Contractors,Policy and Communication,LA International,106230,"8,032.19", Information Management Services,SME,Programme
UK Statistics Authority,Office for National Statistics,08-Oct-18,Contractors,Policy and Communication,LA International,106230,"3,171.80", Information Management Services,SME,Programme
UK Statistics Authority,Office for National Statistics,08-Oct-18,ICT Outsourcing and Maintenance/Support,Policy and Communication,LA International,106230,"3,524.22", Information Management Services,SME,Programme
UK Statistics Authority,Office for National Statistics,09-Oct-18,Childcare Services,"Finance, Planning and Performance",Computershare Voucher Services,106601,"44,105.75", Childcare Vouchers ,Large,Programme
UK Statistics Authority,Office for National Statistics,09-Oct-18,Postage Stamps,"Public, Population and Policy - Operations",Royal Mail Direct,30001071,"44,240.00", Outgoing Postage,Large,Programme
UK Statistics Authority,Office for National Statistics,10-Oct-18,Travel and Subsistence,"Finance, Planning and Performance",Corporate Travel Management ,106620,"64,382.13", Travel and Accommodation Booking Service ,SME,Programme
UK Statistics Authority,Office for National Statistics,10-Oct-18,Contractors,Digital Services and Technology,LA International,106623,"19,963.68", Information Management Services,SME,Programme
UK Statistics Authority,Office for National Statistics,10-Oct-18,Contractors,"Methods, Data and Research",LA International,106623,"3,748.50", Information Management Services,SME,Programme
UK Statistics Authority,Office for National Statistics,10-Oct-18,Contractors,National Accounts and Economic Statistics,LA International,106623,"8,650.44", Information Management Services,SME,Programme
UK Statistics Authority,Office for National Statistics,10-Oct-18,ICT Outsourcing and Maintenance/Support,Policy and Communication,LA International,106623,"6,343.60", Information Management Services,SME,Programme
UK Statistics Authority,Office for National Statistics,10-Oct-18,Major Works Over 25K,People and Business Services,Paramount Office Interiors Ltd,106626,"32,953.52", Major Works Titchfield ,SME,Programme
UK Statistics Authority,Office for National Statistics,10-Oct-18,ICT Outsourcing and Maintenance/Support,Digital Services and Technology,Armakuni Ltd,106630,"31,038.48", Statistical Services,SME,Programme
UK Statistics Authority,Office for National Statistics,11-Oct-18,Procurement Cards,"Finance, Planning and Performance",Royal Bank of Scotland,107036,"53,759.23", Multiple Procurement Card Purchases  ,Large,Programme
UK Statistics Authority,Office for National Statistics,11-Oct-18,Stationery,"Finance, Planning and Performance",Royal Bank of Scotland,107036,"9,306.92", Multiple Procurement Card Stationery Purchases  ,Large,Programme
UK Statistics Authority,Office for National Statistics,11-Oct-18,Contractors,Digital Services and Technology,Parity Resources Limited,107038,"6,408.00", Information Management Services,Large,Programme
UK Statistics Authority,Office for National Statistics,11-Oct-18,Contractors,Policy and Communication,Parity Resources Limited,107038,"17,045.28", Information Management Services,Large,Programme
UK Statistics Authority,Office for National Statistics,11-Oct-18,Contractors,"Public, Population and Policy - Transformation ",Parity Resources Limited,107038,"6,728.40", Information Management Services,Large,Programme
UK Statistics Authority,Office for National Statistics,11-Oct-18,Short-Term Contract and Agency Staff - Full Cost,Economic Statistics - Transformation,Parity Resources Limited,107038,"3,091.66", Information Management Services,Large,Programme
UK Statistics Authority,Office for National Statistics,11-Oct-18,Short-Term Contract and Agency Staff - Full Cost,National Accounts and Economic Statistics,Parity Resources Limited,107038,"2,932.85", Information Management Services,Large,Programme
UK Statistics Authority,Office for National Statistics,11-Oct-18,Short-Term Contract and Agency Staff - Full Cost,Policy and Communication,Parity Resources Limited,107038,"2,276.39", Information Management Services,Large,Programme
UK Statistics Authority,Office for National Statistics,11-Oct-18,Short-Term Contract and Agency Staff - Full Cost,"Public, Population and Policy - Operations",Parity Resources Limited,107038,"3,037.54", Information Management Services,Large,Programme
UK Statistics Authority,Office for National Statistics,11-Oct-18,IT Contractual Services,Digital Services and Technology,FlyForm Ltd,107041,"38,988.00", Information Management Services,SME,Programme
UK Statistics Authority,Office for National Statistics,12-Oct-18,IT Contractual Services,Policy and Communication,Swirrl IT Ltd,107049,"66,402.00", Information Management Services,SME,Programme
UK Statistics Authority,Office for National Statistics,12-Oct-18,Consultancy,"Public, Population and Policy - Transformation ",Deloitte,107052,"664,278.00", Information Management Services,Large,Programme
UK Statistics Authority,Office for National Statistics,12-Oct-18,Capital Major Works > 25K,People and Business Services,Paramount Office Interiors Ltd,107053,"90,121.76", Major Works Titchfield ,SME,Programme
UK Statistics Authority,Office for National Statistics,12-Oct-18,Capital Major Works > 25K,"Public, Population and Policy - Operations",Paramount Office Interiors Ltd,107053,"3,600.00", Major Works Titchfield ,SME,Programme
UK Statistics Authority,Office for National Statistics,12-Oct-18,Major Works Over 25K,People and Business Services,Paramount Office Interiors Ltd,107053,"45,168.00", Major Works Titchfield ,SME,Programme
UK Statistics Authority,Office for National Statistics,12-Oct-18,ICT Outsourcing and Maintenance/Support,"Public, Population and Policy - Operations",TotalMobile Ltd,107057,"91,200.00", Field Management Licenses,SME,Programme
UK Statistics Authority,Office for National Statistics,12-Oct-18,ICT Outsourcing and Maintenance/Support,Digital Services and Technology,Amazon Web Services Inc,107058,"165,176.35", Web Services,Large,Programme
UK Statistics Authority,Office for National Statistics,12-Oct-18,ICT Outsourcing and Maintenance/Support,Digital Services and Technology,Amazon Web Services Inc,107058,"4,889.41", Web Services,Large,Programme
UK Statistics Authority,Office for National Statistics,15-Oct-18,Incentive Payments,"Public, Population and Policy - Operations",Park Retail Ltd,107318,"5,479.13", Social Surveys Incentive Vouchers,Large,Programme
UK Statistics Authority,Office for National Statistics,15-Oct-18,Incentive Payments,"Public, Population and Policy - Operations",Park Retail Ltd,107318,"36,264.74", Social Surveys Incentive Vouchers,Large,Programme
UK Statistics Authority,Office for National Statistics,15-Oct-18,Incentive Payments,"Public, Population and Policy - Operations",Park Retail Ltd,107318,"1,888.87", Social Surveys Incentive Vouchers,Large,Programme
UK Statistics Authority,Office for National Statistics,15-Oct-18,Incentive Payments,"Public, Population and Policy - Operations",Park Retail Ltd,107318,"1,469.12", Social Surveys Incentive Vouchers,Large,Programme
UK Statistics Authority,Office for National Statistics,15-Oct-18,Incentive Payments,"Public, Population and Policy - Operations",Park Retail Ltd,107318,"6,154.18", Social Surveys Incentive Vouchers,Large,Programme
UK Statistics Authority,Office for National Statistics,15-Oct-18,Performance Related Pay Vouchers,ONS Corporate Funds,Park Retail Ltd,107318,"5,133.75", Social Surveys Incentive Vouchers,Large,Programme
UK Statistics Authority,Office for National Statistics,15-Oct-18,Contractors,Economic Statistics - Transformation,Concept Information Technology Ltd T/A Concept Resourcing,107319,"4,662.50", Information Management Services,Large,Programme
UK Statistics Authority,Office for National Statistics,15-Oct-18,Contractors,"Methods, Data and Research",Concept Information Technology Ltd T/A Concept Resourcing,107319,"5,929.34", Information Management Services,Large,Programme
UK Statistics Authority,Office for National Statistics,15-Oct-18,IT Contractual Services,Digital Services and Technology,Concept Information Technology Ltd T/A Concept Resourcing,107319,"44,400.00", Information Management Services,Large,Programme
UK Statistics Authority,Office for National Statistics,15-Oct-18,Short-Term Contract and Agency Staff - Full Cost,Economic Statistics - Transformation,Concept Information Technology Ltd T/A Concept Resourcing,107319,"9,069.39", Information Management Services,Large,Programme
UK Statistics Authority,Office for National Statistics,15-Oct-18,Short-Term Contract and Agency Staff - Full Cost,Economic Statistics - Transformation,Concept Information Technology Ltd T/A Concept Resourcing,107319,"4,719.00", Information Management Services,Large,Programme
UK Statistics Authority,Office for National Statistics,15-Oct-18,Short-Term Contract and Agency Staff - Full Cost,Economic Statistics - Transformation,Concept Information Technology Ltd T/A Concept Resourcing,107319,"6,345.70", Information Management Services,Large,Programme
UK Statistics Authority,Office for National Statistics,15-Oct-18,Short-Term Contract and Agency Staff - Full Cost,"Methods, Data and Research",Concept Information Technology Ltd T/A Concept Resourcing,107319,"4,404.67", Information Management Services,Large,Programme
UK Statistics Authority,Office for National Statistics,15-Oct-18,Short-Term Contract and Agency Staff - Full Cost,"Methods, Data and Research",Concept Information Technology Ltd T/A Concept Resourcing,107319,"3,176.46", Information Management Services,Large,Programme
UK Statistics Authority,Office for National Statistics,15-Oct-18,Short-Term Contract and Agency Staff - Full Cost,"Methods, Data and Research",Concept Information Technology Ltd T/A Concept Resourcing,107319,847.06, Information Management Services,Large,Programme
UK Statistics Authority,Office for National Statistics,15-Oct-18,Short-Term Contract and Agency Staff - Full Cost,National Accounts and Economic Statistics,Concept Information Technology Ltd T/A Concept Resourcing,107319,"4,771.84", Information Management Services,Large,Programme
UK Statistics Authority,Office for National Statistics,15-Oct-18,Short-Term Contract and Agency Staff - Full Cost,Public Policy Analysis,Concept Information Technology Ltd T/A Concept Resourcing,107319,"3,767.52", Information Management Services,Large,Programme
UK Statistics Authority,Office for National Statistics,15-Oct-18,Short-Term Contract and Agency Staff - Full Cost,Public Policy Analysis,Concept Information Technology Ltd T/A Concept Resourcing,107319,"4,758.17", Information Management Services,Large,Programme
UK Statistics Authority,Office for National Statistics,15-Oct-18,Contractors,Digital Services and Technology,Medley Business Solutions Ltd,107329,"10,454.40", Information Management Services,Large,Programme
UK Statistics Authority,Office for National Statistics,15-Oct-18,Contractors,Digital Services and Technology,Medley Business Solutions Ltd,107329,"17,728.01", Information Management Services,Large,Programme
UK Statistics Authority,Office for National Statistics,15-Oct-18,Contractors,Digital Services and Technology,Medley Business Solutions Ltd,107329,319.68, Information Management Services,Large,Programme
UK Statistics Authority,Office for National Statistics,15-Oct-18,Contractors,Digital Services and Technology,Certes Computing Ltd,107335,"5,764.56", Information Management Services,SME,Programme
UK Statistics Authority,Office for National Statistics,15-Oct-18,Contractors,"Public, Population and Policy - Transformation ",Certes Computing Ltd,107335,"14,400.00", Information Management Services,SME,Programme
UK Statistics Authority,Office for National Statistics,15-Oct-18,Contractors,"Public, Population and Policy - Transformation ",Certes Computing Ltd,107335,"11,438.76", Information Management Services,SME,Programme
UK Statistics Authority,Office for National Statistics,15-Oct-18,Specialist Marketing and Communications Services,Policy and Communication,Four Communications Group Limited,107354,"30,061.02", Information Management Services,SME,Programme
UK Statistics Authority,Office for National Statistics,16-Oct-18,Telecommunications,Digital Services and Technology,Vodafone Corporate Ltd,107622,"70,645.96", Information Management Services,Large,Programme
UK Statistics Authority,Office for National Statistics,16-Oct-18,Contractors,Digital Services and Technology,E Synergy Solutions,107625,"9,930.00", Information Management Services ,SME,Programme
UK Statistics Authority,Office for National Statistics,16-Oct-18,Contractors - Capitalised,Digital Services and Technology,E Synergy Solutions,107625,"13,440.00", Information Management Services ,SME,Programme
UK Statistics Authority,Office for National Statistics,16-Oct-18,IT Contractual Services,Digital Services and Technology,E Synergy Solutions,107625,"30,180.00", Information Management Services ,SME,Programme
UK Statistics Authority,Office for National Statistics,16-Oct-18,IT Contractual Services,Digital Services and Technology,E Synergy Solutions,107625,"18,360.00", Information Management Services ,SME,Programme
UK Statistics Authority,Office for National Statistics,16-Oct-18,IT Contractual Services,Digital Services and Technology,E Synergy Solutions,107625,"17,370.00", Information Management Services ,SME,Programme
UK Statistics Authority,Office for National Statistics,16-Oct-18,IT Contractual Services,Policy and Communication,E Synergy Solutions,107625,"11,700.00", Information Management Services ,SME,Programme
UK Statistics Authority,Office for National Statistics,16-Oct-18,IT Contractual Services,Policy and Communication,E Synergy Solutions,107625,"14,400.00", Information Management Services ,SME,Programme
UK Statistics Authority,Office for National Statistics,16-Oct-18,Incentive Payments,"Public, Population and Policy - Operations",Park Retail Ltd,107626,"6,678.83", Social Surveys Incentive Vouchers,Large,Programme
UK Statistics Authority,Office for National Statistics,16-Oct-18,Incentive Payments,"Public, Population and Policy - Operations",Park Retail Ltd,107626,"20,668.48", Social Surveys Incentive Vouchers,Large,Programme
UK Statistics Authority,Office for National Statistics,16-Oct-18,Incentive Payments,"Public, Population and Policy - Operations",Park Retail Ltd,107626,"2,198.15", Social Surveys Incentive Vouchers,Large,Programme
UK Statistics Authority,Office for National Statistics,16-Oct-18,Incentive Payments,"Public, Population and Policy - Operations",Park Retail Ltd,107626,"2,165.02", Social Surveys Incentive Vouchers,Large,Programme
UK Statistics Authority,Office for National Statistics,16-Oct-18,Incentive Payments,"Public, Population and Policy - Operations",Park Retail Ltd,107626,"3,137.06", Social Surveys Incentive Vouchers,Large,Programme
UK Statistics Authority,Office for National Statistics,16-Oct-18,Performance Related Pay Vouchers,ONS Corporate Funds,Park Retail Ltd,107626,"10,961.25", Social Surveys Incentive Vouchers,Large,Programme
UK Statistics Authority,Office for National Statistics,16-Oct-18,Performance Related Pay Vouchers,People and Business Services,Park Retail Ltd,107626,"1,387.50", Social Surveys Incentive Vouchers,Large,Programme
UK Statistics Authority,Office for National Statistics,16-Oct-18,Contractors,Digital Services and Technology,Empiric Solutions Limited,107627,"14,880.00", Information Management Services,Large,Programme
UK Statistics Authority,Office for National Statistics,16-Oct-18,Contractors,Digital Services and Technology,Empiric Solutions Limited,107627,"14,798.64", Information Management Services,Large,Programme
UK Statistics Authority,Office for National Statistics,16-Oct-18,IT Contractual Services,Digital Services and Technology,Empiric Solutions Limited,107627,"26,552.64", Information Management Services,Large,Programme
UK Statistics Authority,Office for National Statistics,16-Oct-18,Contractors,Digital Services and Technology,LA International,107633,"15,661.80", Information Management Services,SME,Programme
UK Statistics Authority,Office for National Statistics,16-Oct-18,Contractors,"Methods, Data and Research",LA International,107633,"14,244.30", Information Management Services,SME,Programme
UK Statistics Authority,Office for National Statistics,16-Oct-18,Contractors,National Accounts and Economic Statistics,LA International,107633,"2,306.78", Information Management Services,SME,Programme
UK Statistics Authority,Office for National Statistics,16-Oct-18,Contractors,"Public, Population and Policy - Transformation ",LA International,107633,"13,392.04", Information Management Services,SME,Programme
UK Statistics Authority,Office for National Statistics,16-Oct-18,ICT Outsourcing and Maintenance/Support,Policy and Communication,LA International,107633,"3,171.80", Information Management Services,SME,Programme
UK Statistics Authority,Office for National Statistics,16-Oct-18,Real Estate Advisory Service,People and Business Services,GVA Grimley,107638,"30,000.00", Information Management Service,Large,Programme
UK Statistics Authority,Office for National Statistics,16-Oct-18,Contractors,Digital Services and Technology,Parity Resources Limited,107640,"5,286.60", Information Management Services,Large,Programme
UK Statistics Authority,Office for National Statistics,16-Oct-18,Contractors,People and Business Services,Parity Resources Limited,107640,"29,650.26", Information Management Services,Large,Programme
UK Statistics Authority,Office for National Statistics,16-Oct-18,Contractors,Policy and Communication,Parity Resources Limited,107640,"11,286.00", Information Management Services,Large,Programme
UK Statistics Authority,Office for National Statistics,16-Oct-18,Contractors,"Public, Population and Policy - Transformation ",Parity Resources Limited,107640,"12,744.00", Information Management Services,Large,Programme
UK Statistics Authority,Office for National Statistics,16-Oct-18,Contractors,"Public, Population and Policy - Transformation ",Parity Resources Limited,107640,"34,603.20", Information Management Services,Large,Programme
UK Statistics Authority,Office for National Statistics,16-Oct-18,ICT Outsourcing and Maintenance/Support,"Methods, Data and Research",Parity Resources Limited,107640,"1,409.76", Information Management Services,Large,Programme
UK Statistics Authority,Office for National Statistics,16-Oct-18,ICT Outsourcing and Maintenance/Support,"Methods, Data and Research",Parity Resources Limited,107640,"5,639.04", Information Management Services,Large,Programme
UK Statistics Authority,Office for National Statistics,16-Oct-18,IT Contractual Services,Digital Services and Technology,Parity Resources Limited,107640,"14,097.60", Information Management Services,Large,Programme
UK Statistics Authority,Office for National Statistics,16-Oct-18,Short-Term Contract and Agency Staff - Full Cost,"Methods, Data and Research",Parity Resources Limited,107640,"2,992.13", Information Management Services,Large,Programme
UK Statistics Authority,Office for National Statistics,16-Oct-18,Short-Term Contract and Agency Staff - Full Cost,National Accounts and Economic Statistics,Parity Resources Limited,107640,"1,650.59", Information Management Services,Large,Programme
UK Statistics Authority,Office for National Statistics,16-Oct-18,Short-Term Contract and Agency Staff - Full Cost,National Accounts and Economic Statistics,Parity Resources Limited,107640,"2,891.63", Information Management Services,Large,Programme
UK Statistics Authority,Office for National Statistics,16-Oct-18,Short-Term Contract and Agency Staff - Full Cost,National Accounts and Economic Statistics,Parity Resources Limited,107640,"1,510.32", Information Management Services,Large,Programme
UK Statistics Authority,Office for National Statistics,16-Oct-18,Short-Term Contract and Agency Staff - Full Cost,Policy and Communication,Parity Resources Limited,107640,444, Information Management Services,Large,Programme
UK Statistics Authority,Office for National Statistics,16-Oct-18,Short-Term Contract and Agency Staff - Full Cost,"Public, Population and Policy - Operations",Parity Resources Limited,107640,"5,549.72", Information Management Services,Large,Programme
UK Statistics Authority,Office for National Statistics,16-Oct-18,Short-Term Contract and Agency Staff - Full Cost,"Public, Population and Policy - Transformation ",Parity Resources Limited,107640,"10,348.92", Information Management Services,Large,Programme
UK Statistics Authority,Office for National Statistics,16-Oct-18,Travel and Subsistence,People and Business Services,Parity Resources Limited,107640,58.04, Information Management Services,Large,Programme
UK Statistics Authority,Office for National Statistics,16-Oct-18,Consultancy,"Public, Population and Policy - Operations",Certeco Ltd,107648,"14,580.00", Information Management services,Large,Programme
UK Statistics Authority,Office for National Statistics,16-Oct-18,Contractors,"Public, Population and Policy - Transformation ",Certeco Ltd,107648,"45,973.20", Information Management services,Large,Programme
UK Statistics Authority,Office for National Statistics,17-Oct-18,Facilities Management Contract Payments,"Finance, Planning and Performance",Vinci Construction UK Limited,107660,"318,437.62", Facility Management Services,Large,Programme
UK Statistics Authority,Office for National Statistics,17-Oct-18,Travel and Subsistence,"Finance, Planning and Performance",Corporate Travel Management ,107669,"73,452.05", Travel and Accommodation Booking Service ,SME,Programme
UK Statistics Authority,Office for National Statistics,19-Oct-18,Facilities Management Contract Payments,"Finance, Planning and Performance",Vinci Construction UK Limited,108166,"303,736.16", Facility Management Services,Large,Programme
UK Statistics Authority,Office for National Statistics,19-Oct-18,Contractors,Economic Statistics - Transformation,Concept Information Technology Ltd T/A Concept Resourcing,108167,"4,769.69", Information Management Services,Large,Programme
UK Statistics Authority,Office for National Statistics,19-Oct-18,Contractors,National Accounts and Economic Statistics,Concept Information Technology Ltd T/A Concept Resourcing,108167,"10,260.00", Information Management Services,Large,Programme
UK Statistics Authority,Office for National Statistics,19-Oct-18,Short-Term Contract and Agency Staff - Full Cost,Economic Statistics - Transformation,Concept Information Technology Ltd T/A Concept Resourcing,108167,"3,769.13", Information Management Services,Large,Programme
UK Statistics Authority,Office for National Statistics,19-Oct-18,Short-Term Contract and Agency Staff - Full Cost,National Accounts and Economic Statistics,Concept Information Technology Ltd T/A Concept Resourcing,108167,"4,881.70", Information Management Services,Large,Programme
UK Statistics Authority,Office for National Statistics,19-Oct-18,Short-Term Contract and Agency Staff - Full Cost,National Accounts and Economic Statistics,Concept Information Technology Ltd T/A Concept Resourcing,108167,"4,778.53", Information Management Services,Large,Programme
UK Statistics Authority,Office for National Statistics,19-Oct-18,Short-Term Contract and Agency Staff - Full Cost,National Accounts and Economic Statistics,Concept Information Technology Ltd T/A Concept Resourcing,108167,"2,733.19", Information Management Services,Large,Programme
UK Statistics Authority,Office for National Statistics,19-Oct-18,Short-Term Contract and Agency Staff - Full Cost,National Accounts and Economic Statistics,Concept Information Technology Ltd T/A Concept Resourcing,108167,"13,491.79", Information Management Services,Large,Programme
UK Statistics Authority,Office for National Statistics,19-Oct-18,Surveys,"Public, Population and Policy - Operations",NISRA,108170,"105,698.16", Statistical Services,Large,Programme
UK Statistics Authority,Office for National Statistics,19-Oct-18,Consultancy,Economic Statistics - Transformation,National Institute of Economic and Social Research,108171,"105,535.20", Information Management Service,SME,Programme
UK Statistics Authority,Office for National Statistics,19-Oct-18,Contractors,Digital Services and Technology,Parity Resources Limited,108172,"12,289.68", Information Management Services,Large,Programme
UK Statistics Authority,Office for National Statistics,19-Oct-18,Contractors,Digital Services and Technology,Parity Resources Limited,108172,"48,195.78", Information Management Services,Large,Programme
UK Statistics Authority,Office for National Statistics,19-Oct-18,Contractors,Digital Services and Technology,Parity Resources Limited,108172,"2,595.24", Information Management Services,Large,Programme
UK Statistics Authority,Office for National Statistics,19-Oct-18,Contractors,Policy and Communication,Parity Resources Limited,108172,"7,689.60", Information Management Services,Large,Programme
UK Statistics Authority,Office for National Statistics,19-Oct-18,Contractors,"Public, Population and Policy - Transformation ",Parity Resources Limited,108172,"14,633.74", Information Management Services,Large,Programme
UK Statistics Authority,Office for National Statistics,19-Oct-18,IT Contractual Services,Digital Services and Technology,Parity Resources Limited,108172,"16,316.58", Information Management Services,Large,Programme
UK Statistics Authority,Office for National Statistics,19-Oct-18,Short-Term Contract and Agency Staff - Full Cost,National Accounts and Economic Statistics,Parity Resources Limited,108172,635.75, Information Management Services,Large,Programme
UK Statistics Authority,Office for National Statistics,19-Oct-18,Short-Term Contract and Agency Staff - Full Cost,People and Business Services,Parity Resources Limited,108172,"2,789.18", Information Management Services,Large,Programme
UK Statistics Authority,Office for National Statistics,19-Oct-18,Short-Term Contract and Agency Staff - Full Cost,"Public, Population and Policy - Transformation ",Parity Resources Limited,108172,"3,141.74", Information Management Services,Large,Programme
UK Statistics Authority,Office for National Statistics,19-Oct-18,Short-Term Contract and Agency Staff - Full Cost,"Public, Population and Policy - Transformation ",Parity Resources Limited,108172,"12,175.20", Information Management Services,Large,Programme
UK Statistics Authority,Office for National Statistics,19-Oct-18,Short-Term Contract and Agency Staff - Full Cost,"Finance, Planning and Performance",Ofqual,108177,"2,441.94", Seconded Staff Cost,SME,Programme
UK Statistics Authority,Office for National Statistics,19-Oct-18,Staff on Loan - Expenses,"Finance, Planning and Performance",Ofqual,108177,"34,059.81", Seconded Staff Cost,SME,Programme
UK Statistics Authority,Office for National Statistics,23-Oct-18,Incentive Payments,"Public, Population and Policy - Operations",Park Retail Ltd,108791,"2,672.68", Social Surveys Incentive Vouchers,Large,Programme
UK Statistics Authority,Office for National Statistics,23-Oct-18,Incentive Payments,"Public, Population and Policy - Operations",Park Retail Ltd,108791,"31,672.04", Social Surveys Incentive Vouchers,Large,Programme
UK Statistics Authority,Office for National Statistics,23-Oct-18,Incentive Payments,"Public, Population and Policy - Operations",Park Retail Ltd,108791,"2,463.25", Social Surveys Incentive Vouchers,Large,Programme
UK Statistics Authority,Office for National Statistics,23-Oct-18,Incentive Payments,"Public, Population and Policy - Operations",Park Retail Ltd,108791,"2,385.94", Social Surveys Incentive Vouchers,Large,Programme
UK Statistics Authority,Office for National Statistics,23-Oct-18,Incentive Payments,"Public, Population and Policy - Operations",Park Retail Ltd,108791,"6,176.27", Social Surveys Incentive Vouchers,Large,Programme
UK Statistics Authority,Office for National Statistics,23-Oct-18,Performance Related Pay Vouchers,ONS Corporate Funds,Park Retail Ltd,108791,"13,458.75", Social Surveys Incentive Vouchers,Large,Programme
UK Statistics Authority,Office for National Statistics,23-Oct-18,IT Contractual Services,Digital Services and Technology,QA Ltd,108806,"65,100.00", Information Management Services,Large,Programme
UK Statistics Authority,Office for National Statistics,24-Oct-18,Travel and Subsistence,"Finance, Planning and Performance",Corporate Travel Management ,108823,"62,340.88", Travel and Accommodation Booking Service ,SME,Programme
UK Statistics Authority,Office for National Statistics,24-Oct-18,ICT Outsourcing and Maintenance/Support,People and Business Services,Cabinet Office,108827,"220,115.94", HR Expert Services,Large,Programme
UK Statistics Authority,Office for National Statistics,24-Oct-18,Electricity,People and Business Services,EDF Energy,30001090,"26,849.81", Electricity Charges Titchfield,Large,Programme
UK Statistics Authority,Office for National Statistics,24-Oct-18,Electricity,People and Business Services,EDF Energy,30001091,"26,325.56", Electricity Charges Newport,Large,Programme
UK Statistics Authority,Office for National Statistics,26-Oct-18,Facilities Management Contract Payments,"Finance, Planning and Performance",Vinci Construction UK Limited,109045,"99,673.72", Facility Management Services,Large,Programme
UK Statistics Authority,Office for National Statistics,26-Oct-18,Contractors,People and Business Services,Parity Resources Limited,109063,"23,043.17", Information Management Services,Large,Programme
UK Statistics Authority,Office for National Statistics,26-Oct-18,Short-Term Contract and Agency Staff - Full Cost,"Public, Population and Policy - Transformation ",Parity Resources Limited,109063,"3,002.88", Information Management Services,Large,Programme
UK Statistics Authority,Office for National Statistics,26-Oct-18,Short-Term Contract and Agency Staff - Full Cost,"Public, Population and Policy - Transformation ",Parity Resources Limited,109063,"4,771.97", Information Management Services,Large,Programme
UK Statistics Authority,Office for National Statistics,26-Oct-18,Contractors,Economic Statistics - Transformation,Mango Solutions,109074,"37,280.59", Information Management Services,SME,Programme
UK Statistics Authority,Office for National Statistics,26-Oct-18,IT Contractual Services,Digital Services and Technology,Mango Solutions,109074,414.23, Information Management Services,SME,Programme
UK Statistics Authority,Office for National Statistics,26-Oct-18,Training and Development,People and Business Services,Mango Solutions,109074,"16,984.84", Information Management Services,SME,Programme
UK Statistics Authority,Office for National Statistics,29-Oct-18,Oracle Cloud Licenses,"Finance, Planning and Performance",SCC,109412,"66,171.92", Information Management Services,Large,Programme
UK Statistics Authority,Office for National Statistics,31-Oct-18,IT Contractual Services,Digital Services and Technology,QA Ltd,30001096,"60,900.00", Information Management Services,Large,Programme
Grand Total,,,,,,,,,,
